fUSD/lending_fUSD_20260703
["ID","MTS","AMOUNT","RATE_DAILY","PERIOD"]
[426953102,1783053041000,-5716.18,0.00029,115]
[426953103,1783053041000,-4556.64,0.00029,115]
[426953106,1783053041000,-708.54,0.00029,30]
[426953054,1783053041000,-1000.0,0.00028543,2]
[426953093,1783053041000,-1256.98786146,0.00029,7]
[426953081,1783053041000,-500.0,0.00028999,120]
[426953108,1783053041000,-698.86,0.00029,115]
[426953080,1783053041000,-500.0,0.00028999,60]
[426953084,1783053041000,-637.09344867,0.00028999,120]
[426953055,1783053041000,-200.0,0.00028548,2]
[426953053,1783053041000,-166.66,0.00028503,2]
[426953059,1783053041000,-238.91361936,0.00028655,2]
[426953057,1783053041000,-163.96286316,0.00028557,2]
[426953056,1783053041000,-431.41143876,0.00028557,2]
[426953060,1783053041000,-1000.0,0.00028658,2]
[426953058,1783053041000,-200.0,0.00028563,2]
[426953061,1783053041000,-1000.0,0.00028658,2]
[426953063,1783053041000,-1000.0,0.00028658,2]
[426953067,1783053041000,-1000.0,0.00028772,2]
[426953065,1783053041000,-298.19,0.0002875,30]
[426953071,1783053041000,-1000.0,0.00028886,2]
[426953062,1783053041000,-1000.0,0.00028658,2]
[426953064,1783053041000,-500.0,0.00028739,60]
[426953072,1783053041000,-150.0,0.00028936,2]
[426953079,1783053041000,-500.0,0.00028999,7]
[426953078,1783053041000,-207.64359543,0.0002899,2]
[426953076,1783053041000,-218.37585953,0.00028977,7]
[426953074,1783053041000,-150.175,0.00028936,2]
[426953085,1783053041000,-500.0,0.00028999,120]
[426953077,1783053041000,-173.76499897,0.0002899,7]
[426953073,1783053041000,-175.595,0.00028936,2]
[426953070,1783053041000,-200.0,0.00028848,2]
[426953068,1783053041000,-155.42114839,0.00028776,2]
[426953066,1783053041000,-504.08,0.00028767,2]
[426953069,1783053041000,-431.41143876,0.00028831,2]
[426953075,1783053041000,-150.0,0.00028936,2]
[426953160,1783053042000,-155.01264153,0.00029203,3]
[426953150,1783053042000,-300.0,0.00029119,10]
[426953139,1783053042000,-500.0,0.00029119,120]
[426953143,1783053042000,-500.0,0.00029119,120]
[426953142,1783053042000,-500.0,0.00029119,120]
[426953140,1783053042000,-500.0,0.00029119,120]
[426953144,1783053042000,-500.0,0.00029119,14]
[426953151,1783053042000,-500.0,0.00029119,120]
[426953148,1783053042000,-500.0,0.00029119,7]
[426953145,1783053042000,-1000.0,0.00029119,2]
[426953141,1783053042000,-500.0,0.00029119,120]
[426953158,1783053042000,-154.40669802,0.00029147,3]
[426953154,1783053042000,-1279.0,0.00029131,2]
[426953156,1783053042000,-3652.0,0.00029131,2]
[426953152,1783053042000,-1363.0,0.00029131,2]
[426953153,1783053042000,-223.0,0.00029131,2]
[426953157,1783053042000,-200.0,0.00029137,2]
[426953155,1783053042000,-1231.0,0.00029131,2]
[426953159,1783053042000,-152.0,0.00029203,3]
[426953172,1783053042000,-300.0,0.00029499,10]
[426953161,1783053042000,-200.0,0.00029319,2]
[426953163,1783053042000,-166.66,0.00029359,2]
[426953137,1783053042000,-500.0,0.00029119,120]
[426953165,1783053042000,-3861.0,0.00029368,5]
[426953149,1783053042000,-500.0,0.00029119,7]
[426953138,1783053042000,-300.0,0.00029119,10]
[426953135,1783053042000,-300.0,0.00029119,10]
[426953146,1783053042000,-1000.0,0.00029119,2]
[426953166,1783053042000,-3980.0,0.00029368,5]
[426953121,1783053042000,-153.01118584,0.00029,2]
[426953112,1783053042000,-150.0,0.00029,7]
[426953114,1783053042000,-230.0,0.00029,2]
[426953122,1783053042000,-376.0,0.00029,2]
[426953123,1783053042000,-159.0,0.00029,2]
[426953113,1783053042000,-150.0,0.00029,7]
[426953120,1783053042000,-152.0,0.00029,2]
[426953117,1783053042000,-305.0,0.00029,7]
[426953116,1783053042000,-153.0,0.00029,2]
[426953119,1783053042000,-429.0,0.00029,2]
[426953118,1783053042000,-264.0,0.00029,2]
[426953115,1783053042000,-313.0,0.00029,2]
[426953125,1783053042000,-388.0,0.00029,2]
[426953136,1783053042000,-500.0,0.00029119,120]
[426953133,1783053042000,-584.82111809,0.00029119,7]
[426953131,1783053042000,-163.96286316,0.00029105,2]
[426953129,1783053042000,-227.0,0.00029,2]
[426953130,1783053042000,-431.41143876,0.00029105,2]
[426953127,1783053042000,-158.0,0.00029,2]
[426953126,1783053042000,-165.0,0.00029,2]
[426953128,1783053042000,-195.64724905,0.00029,2]
[426953124,1783053042000,-152.0,0.00029,2]
[426953134,1783053042000,-500.0,0.00029119,120]
[426953132,1783053042000,-151.0,0.00029117,7]
[426953147,1783053042000,-500.0,0.00029119,120]
[426953169,1783053042000,-317.0,0.000294,2]
[426953168,1783053042000,-431.41143876,0.00029379,2]
[426953207,1783053042000,-475.54149533,0.000299,2]
[426953197,1783053042000,-8015.55205767,0.000299,30]
[426953201,1783053042000,-475.54149533,0.000299,2]
[426953212,1783053042000,-475.54149533,0.000299,2]
[426953211,1783053042000,-475.54149533,0.000299,2]
[426953202,1783053042000,-475.54149533,0.000299,2]
[426953200,1783053042000,-475.54149533,0.000299,2]
[426953204,1783053042000,-475.54149533,0.000299,2]
[426953205,1783053042000,-475.54149533,0.000299,2]
[426953210,1783053042000,-475.54149533,0.000299,2]
[426953208,1783053042000,-475.54149533,0.000299,2]
[426953206,1783053042000,-475.54149533,0.000299,2]
[426953209,1783053042000,-475.54149533,0.000299,2]
[426953213,1783053042000,-475.54149533,0.000299,2]
[426953217,1783053042000,-431.41143876,0.00029927,2]
[426953216,1783053042000,-409.0,0.00029916,2]
[426953214,1783053042000,-475.54149533,0.000299,2]
[426953224,1783053042000,-377.0,0.00029991,2]
[426953219,1783053042000,-377.0,0.00029949,2]
[426953215,1783053042000,-377.0,0.0002991,2]
[426953218,1783053042000,-392.0,0.00029929,2]
[426953220,1783053042000,-413.0,0.00029964,2]
[426953221,1783053042000,-1008.2,0.0002997,30]
[426953223,1783053042000,-367.50907108,0.0002998,2]
[426953222,1783053042000,-475.54149533,0.00029972,2]
[426953171,1783053042000,-1002.94562655,0.00029489,2]
[426953194,1783053042000,-377.0,0.00029868,2]
[426953196,1783053042000,-392.0,0.00029896,2]
[426953203,1783053042000,-475.54149533,0.000299,2]
[426953192,1783053042000,-377.0,0.00029852,2]
[426953164,1783053042000,-500.0,0.00029367,120]
[426953162,1783053042000,-1008.2,0.0002934,30]
[426953167,1783053042000,-150.0,0.00029372,2]
[426953170,1783053042000,-963.09,0.00029447,120]
[426953174,1783053042000,-507.09677297,0.00029499,120]
[426953185,1783053042000,-300.51,0.00029611,7]
[426953180,1783053042000,-500.0,0.00029499,14]
[426953184,1783053042000,-1008.2,0.0002955,30]
[426953190,1783053042000,-377.0,0.00029845,2]
[426953177,1783053042000,-500.0,0.00029499,120]
[426953176,1783053042000,-300.0,0.00029499,10]
[426953181,1783053042000,-368.31719129,0.00029499,120]
[426953173,1783053042000,-300.0,0.00029499,10]
[426953178,1783053042000,-500.0,0.00029499,120]
[426953179,1783053042000,-500.0,0.00029499,120]
[426953199,1783053042000,-475.54149533,0.000299,2]
[426953182,1783053042000,-31170.11540167,0.000295,2]
[426953183,1783053042000,-153.03941338,0.00029522,2]
[426953186,1783053042000,-321.0,0.00029638,10]
[426953187,1783053042000,-431.41143876,0.00029653,2]
[426953188,1783053042000,-163.96286316,0.00029653,2]
[426953189,1783053042000,-1008.2,0.0002976,30]
[426953191,1783053042000,-253.78441154,0.00029848,2]
[426953193,1783053042000,-377.0,0.0002986,2]
[426953198,1783053042000,-475.54149537,0.000299,2]
[426953195,1783053042000,-377.0,0.00029888,2]
[426953175,1783053042000,-500.0,0.00029499,120]
[426953270,1783053043000,-500.0,0.00030079,120]
[426953280,1783053043000,-168.932449,0.0003008,7]
[426953263,1783053043000,-306.92193211,0.00030079,10]
[426953275,1783053043000,-1000.0,0.00030079,2]
[426953265,1783053043000,-500.0,0.00030079,120]
[426953258,1783053043000,-482.0,0.00030005,2]
[426953264,1783053043000,-300.0,0.00030079,10]
[426953260,1783053043000,-377.0,0.00030011,2]
[426953267,1783053043000,-500.0,0.00030079,120]
[426953266,1783053043000,-500.0,0.00030079,120]
[426953269,1783053043000,-500.0,0.00030079,120]
[426953262,1783053043000,-368.0,0.00030028,2]
[426953274,1783053043000,-1000.0,0.00030079,2]
[426953287,1783053043000,-500.0,0.0003008,2]
[426953278,1783053043000,-500.0,0.00030079,120]
[426953276,1783053043000,-606.66678624,0.00030079,7]
[426953279,1783053043000,-151.0,0.0003008,7]
[426953273,1783053043000,-329.92331128,0.00030079,14]
[426953271,1783053043000,-532.87357416,0.00030079,120]
[426953277,1783053043000,-500.0,0.00030079,120]
[426953282,1783053043000,-266.745055,0.0003008,7]
[426953281,1783053043000,-266.745055,0.0003008,7]
[426953288,1783053043000,-421.168781,0.0003008,2]
[426953293,1783053043000,-884.089772,0.0003008,7]
[426953292,1783053043000,-884.089772,0.0003008,7]
[426953291,1783053043000,-151.0,0.0003008,7]
[426953268,1783053043000,-518.80128499,0.00030079,120]
[426953272,1783053043000,-492.64,0.00030079,120]
[426953255,1783053043000,-400.0,0.00030001,2]
[426953236,1783053043000,-3045.94,0.0003,2]
[426953256,1783053043000,-377.0,0.00030002,2]
[426953226,1783053043000,-377.0,0.00029999,2]
[426953237,1783053043000,-230.0,0.0003,2]
[426953225,1783053043000,-377.0,0.00029995,2]
[426953239,1783053043000,-153.0,0.0003,2]
[426953238,1783053043000,-313.0,0.0003,2]
[426953232,1783053043000,-800.0,0.0003,2]
[426953233,1783053043000,-451.88325053,0.0003,30]
[426953229,1783053043000,-500.0,0.00029999,120]
[426953230,1783053043000,-300.0,0.00029999,10]
[426953227,1783053043000,-414.19711406,0.00029999,10]
[426953234,1783053043000,-77324.89960642,0.0003,120]
[426953231,1783053043000,-300.0,0.00029999,10]
[426953257,1783053043000,-392.0,0.00030004,2]
[426953235,1783053043000,-150.0,0.0003,2]
[426953243,1783053043000,-161.0,0.0003,2]
[426953240,1783053043000,-664.32,0.0003,2]
[426953244,1783053043000,-13069.43263158,0.0003,30]
[426953250,1783053043000,-2664.61,0.0003,2]
[426953253,1783053043000,-165.0,0.0003,2]
[426953254,1783053043000,-158.0,0.0003,2]
[426953246,1783053043000,-376.0,0.0003,2]
[426953248,1783053043000,-170.32030284,0.0003,2]
[426953251,1783053043000,-152.0,0.0003,2]
[426953252,1783053043000,-388.0,0.0003,2]
[426953241,1783053043000,-264.0,0.0003,2]
[426953249,1783053043000,-30000.0,0.0003,2]
[426953242,1783053043000,-429.0,0.0003,2]
[426953284,1783053043000,-266.745055,0.0003008,7]
[426953285,1783053043000,-151.0,0.0003008,7]
[426953349,1783053043000,-259.646784,0.0003009,7]
[426953320,1783053043000,-151.0,0.0003009,7]
[426953324,1783053043000,-151.0,0.0003009,7]
[426953322,1783053043000,-199.462662,0.0003009,7]
[426953323,1783053043000,-199.462662,0.0003009,7]
[426953327,1783053043000,-199.462662,0.0003009,7]
[426953319,1783053043000,-151.0,0.0003009,7]
[426953336,1783053043000,-156.80197,0.0003009,7]
[426953334,1783053043000,-394.709616,0.0003009,7]
[426953333,1783053043000,-156.80197,0.0003009,7]
[426953332,1783053043000,-394.709616,0.0003009,7]
[426953331,1783053043000,-394.709616,0.0003009,7]
[426953329,1783053043000,-151.0,0.0003009,7]
[426953330,1783053043000,-394.709616,0.0003009,7]
[426953335,1783053043000,-156.80197,0.0003009,7]
[426953339,1783053043000,-251.638202,0.0003009,7]
[426953338,1783053043000,-156.47491,0.0003009,7]
[426953340,1783053043000,-251.638202,0.0003009,7]
[426953342,1783053043000,-251.638202,0.0003009,7]
[426953343,1783053043000,-251.638202,0.0003009,7]
[426953341,1783053043000,-187.763118,0.0003009,7]
[426953347,1783053043000,-851.483759,0.0003009,7]
[426953348,1783053043000,-851.483759,0.0003009,7]
[426953344,1783053043000,-151.0,0.0003009,7]
[426953345,1783053043000,-851.483759,0.0003009,7]
[426953290,1783053043000,-151.0,0.0003008,7]
[426953350,1783053043000,-259.646784,0.0003009,7]
[426953346,1783053043000,-851.483759,0.0003009,7]
[426953321,1783053043000,-295.375301,0.0003009,7]
[426953325,1783053043000,-199.462662,0.0003009,7]
[426953337,1783053043000,-156.80197,0.0003009,7]
[426953318,1783053043000,-151.0,0.0003009,7]
[426953283,1783053043000,-266.745055,0.0003008,7]
[426953328,1783053043000,-151.0,0.0003009,7]
[426953286,1783053043000,-151.0,0.0003008,7]
[426953294,1783053043000,-884.089772,0.0003008,7]
[426953296,1783053043000,-151.0,0.0003008,7]
[426953298,1783053043000,-217.65285,0.0003008,7]
[426953297,1783053043000,-151.0,0.0003008,7]
[426953303,1783053043000,-502.374451,0.0003008,7]
[426953301,1783053043000,-217.65285,0.0003008,7]
[426953299,1783053043000,-217.65285,0.0003008,7]
[426953295,1783053043000,-884.089772,0.0003008,7]
[426953300,1783053043000,-217.65285,0.0003008,7]
[426953304,1783053043000,-502.374451,0.0003008,7]
[426953302,1783053043000,-502.374451,0.0003008,7]
[426953289,1783053043000,-151.0,0.0003008,7]
[426953306,1783053043000,-419.989305,0.0003008,7]
[426953305,1783053043000,-502.374451,0.0003008,7]
[426953326,1783053043000,-151.0,0.0003009,7]
[426953316,1783053043000,-238563.70906721,0.0003009,2]
[426953317,1783053043000,-151.0,0.0003009,7]
[426953311,1783053043000,-300.0,0.00030089,10]
[426953312,1783053043000,-500.0,0.00030089,120]
[426953315,1783053043000,-1000.0,0.00030089,2]
[426953308,1783053043000,-419.989305,0.0003008,7]
[426953314,1783053043000,-500.0,0.00030089,120]
[426953309,1783053043000,-419.989305,0.0003008,7]
[426953313,1783053043000,-500.0,0.00030089,120]
[426953310,1783053043000,-151.0,0.00030087,7]
[426953307,1783053043000,-419.989305,0.0003008,7]
[426953396,1783053044000,-150.0,0.00030822,30]
[426953392,1783053044000,-150.0,0.00030822,30]
[426953389,1783053044000,-150.0,0.00030822,30]
[426953387,1783053044000,-260.03445119,0.00030822,30]
[426953384,1783053044000,-1002.94562655,0.00030751,2]
[426953383,1783053044000,-163.96286316,0.00030749,2]
[426953382,1783053044000,-431.41143876,0.00030749,2]
[426953385,1783053044000,-153.03941338,0.00030773,2]
[426953380,1783053044000,-1008.2,0.000306,30]
[426953390,1783053044000,-150.0,0.00030822,30]
[426953381,1783053044000,-150.0,0.00030746,30]
[426953388,1783053044000,-150.0,0.00030822,30]
[426953393,1783053044000,-150.0,0.00030822,30]
[426953399,1783053044000,-321.0,0.00030938,10]
[426953395,1783053044000,-167.35133042,0.00030822,30]
[426953397,1783053044000,-150.0,0.00030822,30]
[426953391,1783053044000,-150.0,0.00030822,30]
[426953394,1783053044000,-150.0,0.00030822,30]
[426953412,1783053044000,-165.0,0.00031,2]
[426953401,1783053044000,-475.54149533,0.0003095,2]
[426953400,1783053044000,-150.0,0.00030949,30]
[426953404,1783053044000,-230.0,0.00031,2]
[426953407,1783053044000,-264.0,0.00031,2]
[426953408,1783053044000,-429.0,0.00031,2]
[426953379,1783053044000,-291.94514696,0.00030597,2]
[426953398,1783053044000,-150.0,0.00030841,2]
[426953378,1783053044000,-151.24630945,0.00030525,30]
[426953402,1783053044000,-1040.84,0.00030959,120]
[426953376,1783053044000,-475.54149533,0.00030461,2]
[426953351,1783053044000,-259.646784,0.0003009,7]
[426953361,1783053044000,-150.0,0.00030137,30]
[426953353,1783053044000,-151.0,0.0003009,7]
[426953355,1783053044000,-377.0,0.00030092,2]
[426953352,1783053044000,-259.646784,0.0003009,7]
[426953354,1783053044000,-200.0,0.00030091,2]
[426953362,1783053044000,-1040.84,0.00030137,120]
[426953356,1783053044000,-204.04,0.000301,7]
[426953359,1783053044000,-168.12,0.00030137,2]
[426953360,1783053044000,-1000.0,0.00030137,30]
[426953357,1783053044000,-185.08,0.000301,7]
[426953358,1783053044000,-150.0,0.000301,10]
[426953377,1783053044000,-431.41143876,0.00030475,2]
[426953363,1783053044000,-380.0,0.0003016,2]
[426953369,1783053044000,-151.0,0.00030378,7]
[426953374,1783053044000,-1008.2,0.0003039,30]
[426953367,1783053044000,-166.66,0.00030215,2]
[426953368,1783053044000,-1965.36,0.00030275,120]
[426953370,1783053044000,-151.915036,0.00030378,7]
[426953364,1783053044000,-1008.2,0.0003018,30]
[426953366,1783053044000,-163.96286316,0.00030201,2]
[426953372,1783053044000,-151.0,0.00030378,30]
[426953373,1783053044000,-15000.0,0.00030378,2]
[426953371,1783053044000,-151.0,0.00030378,30]
[426953375,1783053044000,-150.0,0.00030441,30]
[426953386,1783053044000,-204.04,0.000308,7]
[426953365,1783053044000,-431.41143876,0.00030201,2]
[426953406,1783053044000,-157.0,0.00031,2]
[426953419,1783053044000,-500.0,0.00031039,120]
[426953403,1783053044000,-155.42114839,0.00030966,2]
[426953441,1783053044000,-150.0,0.00031456,30]
[426953439,1783053044000,-5218.01665526,0.000314,2]
[426953438,1783053044000,-5218.01665526,0.000314,2]
[426953442,1783053044000,-204.04,0.000315,7]
[426953440,1783053044000,-361.17485006,0.00031426,2]
[426953446,1783053044000,-431.41143876,0.00031571,2]
[426953445,1783053044000,-151.24630945,0.00031525,30]
[426953456,1783053044000,-150.0,0.0003171,30]
[426953451,1783053044000,-162.02,0.00031667,2]
[426953453,1783053044000,-150.0,0.00031678,30]
[426953411,1783053044000,-388.0,0.00031,2]
[426953448,1783053044000,-395.55,0.00031588,3]
[426953450,1783053044000,-152.23231654,0.00031659,30]
[426953455,1783053044000,-155.32023441,0.00031683,120]
[426953449,1783053044000,-1178.0,0.000316,7]
[426953454,1783053044000,-150.0,0.00031678,30]
[426953452,1783053044000,-500.0,0.00031671,2]
[426953458,1783053044000,-332.04702454,0.00031766,2]
[426953457,1783053044000,-257.09247592,0.00031766,2]
[426953461,1783053044000,-329.54808783,0.00031767,2]
[426953459,1783053044000,-184.14156132,0.00031766,2]
[426953460,1783053044000,-314.47585144,0.00031767,2]
[426953464,1783053044000,-1040.84,0.00031781,120]
[426953462,1783053044000,-497.0,0.00031771,30]
[426953463,1783053044000,-500.0,0.00031773,120]
[426953443,1783053044000,-173.97616124,0.00031507,15]
[426953436,1783053044000,-150.0,0.00031393,30]
[426953447,1783053044000,-150.0,0.00031583,30]
[426953437,1783053044000,-5218.01665527,0.000314,2]
[426953433,1783053044000,-150.0,0.00031329,30]
[426953410,1783053044000,-152.0,0.00031,2]
[426953405,1783053044000,-313.0,0.00031,2]
[426953409,1783053044000,-376.0,0.00031,2]
[426953414,1783053044000,-152.0,0.00031018,4]
[426953415,1783053044000,-431.41143876,0.00031023,2]
[426953413,1783053044000,-158.0,0.00031,2]
[426953426,1783053044000,-150.0,0.00031202,30]
[426953424,1783053044000,-1178.0,0.000311,7]
[426953418,1783053044000,-500.0,0.00031039,120]
[426953416,1783053044000,-1224.87563013,0.0003103,30]
[426953425,1783053044000,-198.79,0.00031167,30]
[426953417,1783053044000,-300.0,0.00031039,10]
[426953423,1783053044000,-150.0,0.00031076,30]
[426953420,1783053044000,-445.79639571,0.00031039,120]
[426953444,1783053044000,-150.0,0.00031507,30]
[426953434,1783053044000,-156.03,0.00031336,2]
[426953432,1783053044000,-345.0,0.00031329,30]
[426953430,1783053044000,-163.96286316,0.00031297,2]
[426953431,1783053044000,-200.0,0.00031303,2]
[426953435,1783053044000,-150.0,0.00031355,30]
[426953427,1783053044000,-155.00187916,0.00031222,120]
[426953428,1783053044000,-150.0,0.0003125,30]
[426953421,1783053044000,-1000.0,0.00031039,2]
[426953422,1783053044000,-150.0,0.0003105,30]
[426953429,1783053044000,-431.41143876,0.00031297,2]
[426953512,1783053045000,-217.65285,0.00032,7]
[426953507,1783053045000,-884.089772,0.00032,7]
[426953504,1783053045000,-151.000015,0.00032,7]
[426953506,1783053045000,-884.089772,0.00032,7]
[426953502,1783053045000,-165.0,0.00032,2]
[426953498,1783053045000,-151.0,0.00032,7]
[426953499,1783053045000,-163.0,0.00032,2]
[426953493,1783053045000,-266.745055,0.00032,7]
[426953494,1783053045000,-266.745055,0.00032,7]
[426953495,1783053045000,-151.0,0.00032,7]
[426953508,1783053045000,-884.089772,0.00032,7]
[426953500,1783053045000,-388.0,0.00032,2]
[426953510,1783053045000,-158.336846,0.00032,7]
[426953519,1783053045000,-502.374451,0.00032,7]
[426953513,1783053045000,-217.65285,0.00032,7]
[426953509,1783053045000,-151.0,0.00032,7]
[426953505,1783053045000,-884.089772,0.00032,7]
[426953511,1783053045000,-217.65285,0.00032,7]
[426953515,1783053045000,-2009.0,0.00032,2]
[426953525,1783053045000,-1002.94562655,0.00032012,2]
[426953526,1783053045000,-153.03941338,0.00032023,2]
[426953514,1783053045000,-217.65285,0.00032,7]
[426953516,1783053045000,-502.374451,0.00032,7]
[426953520,1783053045000,-419.989305,0.00032,7]
[426953521,1783053045000,-419.989305,0.00032,7]
[426953497,1783053045000,-151.0,0.00032,7]
[426953503,1783053045000,-165.0316901,0.00032,2]
[426953496,1783053045000,-151.0,0.00032,7]
[426953524,1783053045000,-1202.14524433,0.00032012,2]
[426953491,1783053045000,-266.745055,0.00032,7]
[426953465,1783053045000,-150.0,0.00031837,30]
[426953466,1783053045000,-431.41143876,0.00031845,2]
[426953477,1783053045000,-151.0,0.00031997,7]
[426953473,1783053045000,-150.0,0.00031963,30]
[426953468,1783053045000,-1202.14524433,0.0003187,2]
[426953471,1783053045000,-150.0,0.00031936,2]
[426953467,1783053045000,-163.96286316,0.00031845,2]
[426953475,1783053045000,-150.0,0.00031963,30]
[426953469,1783053045000,-1202.14524433,0.00031924,2]
[426953478,1783053045000,-494.16095271,0.00031999,120]
[426953470,1783053045000,-150.0,0.00031936,2]
[426953472,1783053045000,-150.0,0.00031936,2]
[426953476,1783053045000,-1202.14524433,0.00031988,2]
[426953474,1783053045000,-150.0,0.00031963,30]
[426953479,1783053045000,-500.0,0.00031999,120]
[426953488,1783053045000,-429.0,0.00032,2]
[426953481,1783053045000,-1000.0,0.00031999,2]
[426953490,1783053045000,-151.0,0.00032,7]
[426953486,1783053045000,-313.0,0.00032,2]
[426953485,1783053045000,-230.0,0.00032,2]
[426953482,1783053045000,-8663.5153,0.00032,2]
[426953483,1783053045000,-185.08,0.00032,7]
[426953480,1783053045000,-500.0,0.00031999,120]
[426953484,1783053045000,-5022.67459374,0.00032,120]
[426953489,1783053045000,-376.0,0.00032,2]
[426953487,1783053045000,-264.0,0.00032,2]
[426953501,1783053045000,-175.50578512,0.00032,15]
[426953492,1783053045000,-266.745055,0.00032,7]
[426953517,1783053045000,-502.374451,0.00032,7]
[426953581,1783053045000,-151.0,0.00032229,7]
[426953523,1783053045000,-419.989305,0.00032,7]
[426953558,1783053045000,-851.483759,0.00032101,7]
[426953560,1783053045000,-851.483759,0.00032101,7]
[426953553,1783053045000,-251.638202,0.00032101,7]
[426953561,1783053045000,-259.646784,0.00032101,7]
[426953555,1783053045000,-251.638202,0.00032101,7]
[426953556,1783053045000,-151.0,0.00032101,7]
[426953564,1783053045000,-259.646784,0.00032101,7]
[426953573,1783053045000,-223.0,0.00032131,2]
[426953575,1783053045000,-1231.0,0.00032131,2]
[426953565,1783053045000,-151.0,0.00032101,7]
[426953563,1783053045000,-259.646784,0.00032101,7]
[426953566,1783053045000,-387338.7965288,0.00032102,2]
[426953572,1783053045000,-1363.0,0.00032131,2]
[426953574,1783053045000,-1279.0,0.00032131,2]
[426953569,1783053045000,-150.0,0.00032106,30]
[426953570,1783053045000,-355.80535086,0.00032112,5]
[426953571,1783053045000,-431.41143876,0.00032119,2]
[426953567,1783053045000,-151.0,0.00032102,7]
[426953568,1783053045000,-1202.14524433,0.00032105,2]
[426953579,1783053045000,-204.04,0.000322,7]
[426953577,1783053045000,-1202.14524433,0.00032189,2]
[426953578,1783053045000,-150.0,0.00032192,30]
[426953584,1783053045000,-100000.0,0.00032232,60]
[426953576,1783053045000,-3652.0,0.00032131,2]
[426953580,1783053045000,-150.0,0.00032217,30]
[426953582,1783053045000,-100000.0,0.00032232,120]
[426953518,1783053045000,-502.374451,0.00032,7]
[426953559,1783053045000,-851.483759,0.00032101,7]
[426953562,1783053045000,-259.646784,0.00032101,7]
[426953583,1783053045000,-100000.0,0.00032232,90]
[426953552,1783053045000,-251.638202,0.00032101,7]
[426953522,1783053045000,-419.989305,0.00032,7]
[426953527,1783053045000,-1202.14524433,0.00032026,2]
[426953538,1783053045000,-199.462662,0.00032101,7]
[426953528,1783053045000,-150.0,0.0003209,30]
[426953530,1783053045000,-500.0,0.00032101,120]
[426953534,1783053045000,-151.0,0.00032101,7]
[426953529,1783053045000,-1178.0,0.000321,7]
[426953554,1783053045000,-251.638202,0.00032101,7]
[426953531,1783053045000,-567.99677537,0.00032101,120]
[426953533,1783053045000,-161.972684,0.00032101,7]
[426953535,1783053045000,-151.0,0.00032101,7]
[426953537,1783053045000,-199.462662,0.00032101,7]
[426953539,1783053045000,-151.0,0.00032101,7]
[426953532,1783053045000,-36479.2,0.00032101,2]
[426953541,1783053045000,-153.324504,0.00032101,7]
[426953557,1783053045000,-851.483759,0.00032101,7]
[426953536,1783053045000,-151.0,0.00032101,7]
[426953550,1783053045000,-156.80197,0.00032101,7]
[426953549,1783053045000,-394.709616,0.00032101,7]
[426953543,1783053045000,-151.0,0.00032101,7]
[426953548,1783053045000,-156.80197,0.00032101,7]
[426953545,1783053045000,-394.709616,0.00032101,7]
[426953540,1783053045000,-199.462662,0.00032101,7]
[426953546,1783053045000,-394.709616,0.00032101,7]